fUST/lending_fUST_20250225
["ID","MTS","AMOUNT","RATE_DAILY","PERIOD"]
[354402244,1740472242535,-500.0,0.00066834,15]
[354402245,1740472242548,-5975.73970506,0.00066839,6]
[354402246,1740472242559,-390.29039387,0.00066839,6]
[354402247,1740472242573,-2340.66662164,0.00066848,120]
[354402248,1740472242585,-2340.66662164,0.00066848,120]
[354402249,1740472242596,-2340.66662164,0.00066848,120]
[354402250,1740472242608,-2340.66662164,0.00066848,120]
[354402251,1740472242619,-2340.66662164,0.00066848,120]
[354402252,1740472242629,-2340.66662164,0.00066848,120]
[354402253,1740472242641,-2340.66662164,0.00066848,120]
[354402254,1740472242652,-2340.66662164,0.00066848,120]
[354402255,1740472242663,-2340.66662164,0.00066848,120]
[354402256,1740472242675,-2340.66662164,0.00066848,120]
[354402257,1740472242688,-2340.66662164,0.00066848,120]
[354402258,1740472242699,-2340.66662164,0.00066848,120]
[354402259,1740472242712,-2340.66662164,0.00066848,120]
[354402260,1740472242723,-2340.66662164,0.00066848,120]
[354402261,1740472242735,-2340.66662164,0.00066848,120]
[354402262,1740472242748,-2340.66662164,0.00066848,120]
[354402263,1740472242762,-2340.66662164,0.00066848,120]
[354402264,1740472242775,-500.0,0.00066848,120]
[354402265,1740472242790,-500.0,0.00066848,120]
[354402266,1740472242800,-500.0,0.00066848,120]
[354402267,1740472242810,-333.34,0.00066849,120]
[354402268,1740472242821,-896.11,0.00066849,120]
[354402269,1740472242831,-1175.19,0.00066849,120]
[354402271,1740472242842,-1648.55,0.00066849,120]
[354402273,1740472242854,-500.0,0.00066849,120]
[354402276,1740472242867,-500.0,0.00066849,120]
[354402278,1740472242879,-2835.23,0.00066849,3]
[354402279,1740472242891,-10464.78,0.00066849,120]
[354402280,1740472242901,-500.0,0.00066849,120]
[354402281,1740472242911,-582.06,0.00066849,120]
[354402282,1740472242922,-399.38,0.00066849,120]
[354402283,1740472242932,-568.42,0.00066849,120]
[354402284,1740472242945,-503.47,0.00066849,7]
[354402285,1740472242956,-251.19,0.00066849,120]
[354402286,1740472242966,-500.0,0.00066849,120]
[354402287,1740472242977,-500.0,0.00066849,120]
[354402288,1740472242987,-500.0,0.00066849,120]
[354402289,1740472242997,-927.79,0.00066849,120]
[354402290,1740472243008,-500.0,0.00066849,120]
[354402291,1740472243019,-500.0,0.00066849,120]
[354402292,1740472243030,-2229.76,0.00066849,120]
[354402293,1740472243042,-500.0,0.00066849,120]
[354402294,1740472243053,-500.0,0.00066849,120]
[354402295,1740472243064,-716.71,0.00066849,120]
[354402296,1740472243075,-20454.37,0.00066849,7]
[354402297,1740472243086,-900.61,0.00066849,120]
[354402298,1740472243097,-1621.79,0.00066849,120]
[354402299,1740472243109,-500.0,0.00066849,120]
[354402300,1740472243120,-500.0,0.00066849,120]
[354402301,1740472243132,-500.0,0.00066849,120]
[354402302,1740472243143,-567.09,0.00066849,120]
[354402303,1740472243154,-1647.77,0.00066849,120]
[354402304,1740472243165,-690.1,0.00066849,120]
[354402305,1740472243177,-5975.73970506,0.00067113,6]
[354402306,1740472243188,-390.29039387,0.00067113,6]
[354402308,1740472243199,-500.0,0.00067122,120]
[354402310,1740472243210,-500.0,0.00067122,120]
[354402315,1740472243226,-500.0,0.00067122,120]
[354402318,1740472243237,-896.11,0.00067123,120]
[354402321,1740472243248,-1175.19,0.00067123,120]
[354402325,1740472243259,-1648.55,0.00067123,120]
[354402328,1740472243272,-500.0,0.00067123,120]
[354402331,1740472243283,-500.0,0.00067123,120]
[354402334,1740472243297,-2835.23,0.00067123,3]
[354402338,1740472243309,-10464.78,0.00067123,120]
[354402342,1740472243322,-500.0,0.00067123,120]
[354402346,1740472243334,-582.06,0.00067123,120]
[354402351,1740472243346,-568.42,0.00067123,120]
[354402354,1740472243357,-503.47,0.00067123,7]
[354402358,1740472243369,-500.0,0.00067123,120]
[354402361,1740472243382,-500.0,0.00067123,120]
[354402364,1740472243394,-500.0,0.00067123,120]
[354402367,1740472243405,-927.79,0.00067123,120]
[354402370,1740472243417,-500.0,0.00067123,120]
[354402373,1740472243428,-500.0,0.00067123,120]
[354402378,1740472243440,-2229.76,0.00067123,120]
[354402389,1740472243543,-500.0,0.00067123,120]
[354402390,1740472243578,-500.0,0.00067123,120]
[354402391,1740472243587,-716.71,0.00067123,120]
[354402392,1740472243597,-20454.37,0.00067123,7]
[354402393,1740472243606,-900.61,0.00067123,120]
[354402394,1740472243616,-1621.79,0.00067123,120]
[354402395,1740472243625,-500.0,0.00067123,120]
[354402396,1740472243634,-500.0,0.00067123,120]
[354402397,1740472243644,-500.0,0.00067123,120]
[354402398,1740472243653,-567.09,0.00067123,120]
[354402399,1740472243663,-690.1,0.00067123,120]
[354402400,1740472243672,-1647.77,0.00067123,120]
[354402401,1740472243681,-501.22107208,0.0006725,15]
[354402402,1740472243691,-5975.73970506,0.00067387,6]
[354402403,1740472243701,-390.29039387,0.00067387,6]
[354402404,1740472243710,-500.0,0.00067396,120]
[354402405,1740472243719,-500.0,0.00067396,120]
[354402406,1740472243729,-500.0,0.00067396,120]
[354402407,1740472243738,-896.11,0.00067397,120]
[354402408,1740472243748,-1175.19,0.00067397,120]
[354402409,1740472243758,-1648.55,0.00067397,120]
[354402410,1740472243768,-197.14,0.00067397,120]
[354402411,1740472243777,-500.0,0.00067397,120]
[354402412,1740472243786,-2835.23,0.00067397,3]
[354402413,1740472243798,-10464.78,0.00067397,120]
[354402414,1740472243808,-372.72,0.00067397,120]
[354402415,1740472243818,-582.06,0.00067397,120]
[354402416,1740472243827,-568.42,0.00067397,120]
[354402417,1740472243836,-503.47,0.00067397,7]
[354402418,1740472243847,-500.0,0.00067397,120]
[354402419,1740472243856,-500.0,0.00067397,120]
[354402420,1740472243865,-493.24,0.00067397,120]
[354402421,1740472243875,-927.79,0.00067397,120]
[354402422,1740472243884,-500.0,0.00067397,120]
[354402423,1740472243894,-500.0,0.00067397,120]
[354402424,1740472243903,-2229.76,0.00067397,120]
[354402425,1740472243913,-500.0,0.00067397,120]
[354402426,1740472243923,-500.0,0.00067397,120]
[354402427,1740472243932,-716.71,0.00067397,120]
[354402428,1740472243944,-20454.37,0.00067397,7]
[354402429,1740472243954,-900.61,0.00067397,120]
[354402430,1740472243963,-1621.79,0.00067397,120]
[354402431,1740472243973,-500.0,0.00067397,120]
[354402432,1740472243984,-500.0,0.00067397,120]
[354402433,1740472243994,-500.0,0.00067397,120]
[354402435,1740472244004,-567.09,0.00067397,120]
[354402438,1740472244013,-690.1,0.00067397,120]
[354402441,1740472244024,-1647.77,0.00067397,120]
[354402444,1740472244034,-5975.73970506,0.00067661,6]
[354402447,1740472244047,-390.29039387,0.00067661,6]
[354402450,1740472244056,-500.0,0.0006767,120]
[354402451,1740472244065,-500.0,0.0006767,120]
[354402452,1740472244075,-500.0,0.0006767,120]
[354402453,1740472244085,-896.11,0.00067671,120]
[354402454,1740472244095,-1175.19,0.00067671,120]
[354402455,1740472244105,-1648.55,0.00067671,120]
[354402456,1740472244115,-500.0,0.00067671,120]
[354402457,1740472244124,-2835.23,0.00067671,3]
[354402458,1740472244134,-10464.78,0.00067671,120]
[354402459,1740472244145,-582.06,0.00067671,120]
[354402460,1740472244155,-568.42,0.00067671,120]
[354402461,1740472244166,-503.47,0.00067671,7]
[354402462,1740472244177,-500.0,0.00067671,120]
[354402463,1740472244188,-500.0,0.00067671,120]
[354402464,1740472244198,-927.79,0.00067671,120]
[354402465,1740472244208,-500.0,0.00067671,120]
[354402466,1740472244219,-500.0,0.00067671,120]
[354402467,1740472244229,-2229.76,0.00067671,120]
[354402468,1740472244243,-500.0,0.00067671,120]
[354402469,1740472244253,-500.0,0.00067671,120]
[354402470,1740472244263,-716.71,0.00067671,120]
[354402471,1740472244274,-20454.37,0.00067671,7]
[354402472,1740472244283,-900.61,0.00067671,120]
[354402473,1740472244294,-1621.79,0.00067671,120]
[354402474,1740472244305,-500.0,0.00067671,120]
[354402475,1740472244315,-500.0,0.00067671,120]
[354402476,1740472244325,-500.0,0.00067671,120]
[354402477,1740472244335,-567.09,0.00067671,120]
[354402478,1740472244344,-690.1,0.00067671,120]
[354402479,1740472244353,-1647.77,0.00067671,120]
[354402480,1740472244363,-17927.2191152,0.0006769,6]
[354402481,1740472244373,-1170.87118161,0.0006769,6]
[354402482,1740472244382,-202.82,0.00067753,30]
[354402483,1740472244392,-15929.04639572,0.00067844,120]
[354402485,1740472244407,-30152.50682179,0.00067844,120]
[354402486,1740472244416,-500.0,0.00067944,120]
[354402487,1740472244426,-500.0,0.00067944,120]
[354402489,1740472244436,-500.0,0.00067944,120]
[354402490,1740472244446,-896.11,0.00067945,120]
[354402491,1740472244455,-1175.19,0.00067945,120]
[354402492,1740472244464,-1648.55,0.00067945,120]
[354402493,1740472244473,-500.0,0.00067945,120]
[354402494,1740472244482,-2835.23,0.00067945,3]
[354402495,1740472244492,-10464.78,0.00067945,120]
[354402496,1740472244502,-582.06,0.00067945,120]
[354402497,1740472244512,-568.42,0.00067945,120]
[354402498,1740472244521,-503.47,0.00067945,7]
[354402499,1740472244531,-500.0,0.00067945,120]
[354402500,1740472244542,-500.0,0.00067945,120]
[354402501,1740472244551,-927.79,0.00067945,120]
[354402502,1740472244561,-500.0,0.00067945,120]
[354402503,1740472244571,-500.0,0.00067945,120]
[354402504,1740472244580,-2229.76,0.00067945,120]
[354402505,1740472244589,-500.0,0.00067945,120]
[354402506,1740472244598,-500.0,0.00067945,120]
[354402507,1740472244607,-716.71,0.00067945,120]
[354402508,1740472244617,-20454.37,0.00067945,7]
[354402509,1740472244626,-900.61,0.00067945,120]
[354402510,1740472244635,-1621.79,0.00067945,120]
[354402511,1740472244645,-500.0,0.00067945,120]
[354402512,1740472244654,-500.0,0.00067945,120]
[354402513,1740472244663,-500.0,0.00067945,120]
[354402514,1740472244672,-567.09,0.00067945,120]
[354402515,1740472244682,-5975.73970506,0.00068208,6]
[354402516,1740472244691,-390.29039387,0.00068208,6]
[354402517,1740472244700,-500.0,0.00068218,120]
[354402518,1740472244709,-206.38,0.00068218,120]
[354402519,1740472244719,-97.15307928,0.00068218,120]
[354402520,1740472244948,-504.95618418,0.00065753,120]
[354402521,1740472244958,-107.2681149,0.00065753,120]
[354402522,1740472244970,-392.7318851,0.00065753,120]
[354402523,1740472244979,-500.0,0.00066027,120]
[354402524,1740472244989,-500.0,0.00066301,120]
[354402525,1740472244999,-500.0,0.00066575,120]
[354402526,1740472245008,-690.1,0.00067945,120]
[354402527,1740472245017,-1647.77,0.00067945,120]
[354402528,1740472245027,-457.76592072,0.00068218,120]
[354402529,1740472245036,-896.11,0.00068219,120]
[354402530,1740472245047,-1175.19,0.00068219,120]
[354402531,1740472245056,-1648.55,0.00068219,120]
[354402532,1740472245065,-500.0,0.00068219,120]
[354402533,1740472245074,-964.36330673,0.00068219,3]
[354402595,1740472249396,-984.7674761,0.00068219,3]
[354402596,1740472249413,-500.0,0.00066849,120]
[354402597,1740472249423,-886.09921717,0.00068219,3]
[354402598,1740472249434,-10464.78,0.00068219,120]
[354402599,1740472249444,-582.06,0.00068219,120]
[354402600,1740472249454,-568.42,0.00068219,120]
[354402601,1740472249463,-503.47,0.00068219,7]
[354402602,1740472249473,-500.0,0.00068219,120]
[354402603,1740472249483,-500.0,0.00068219,120]
[354402604,1740472249492,-927.79,0.00068219,120]
[354402605,1740472249505,-500.0,0.00068219,120]
[354402606,1740472249515,-500.0,0.00068219,120]
[354402607,1740472249525,-2229.76,0.00068219,120]
[354402608,1740472249534,-500.0,0.00068219,120]
[354402609,1740472249544,-500.0,0.00068219,120]
[354402610,1740472249555,-716.71,0.00068219,120]
[354402611,1740472249565,-7370.25369165,0.00068219,7]
[354402612,1740472250330,-500.0,0.00067123,120]
[354402613,1740472250340,-500.0,0.00067397,120]
[354402614,1740472250350,-500.0,0.00067671,120]
[354402615,1740472250358,-500.0,0.00067945,120]
[354402616,1740472250368,-13084.11630835,0.00068219,7]
[354402617,1740472250377,-900.61,0.00068219,120]
[354402618,1740472250386,-1621.79,0.00068219,120]
[354402619,1740472250395,-500.0,0.00068219,120]
[354402620,1740472250405,-500.0,0.00068219,120]
[354402621,1740472250415,-500.0,0.00068219,120]
[354402622,1740472250424,-567.09,0.00068219,120]
[354402623,1740472250434,-1647.77,0.00068219,120]
[354402624,1740472250444,-690.1,0.00068219,120]
[354402625,1740472250455,-500.0,0.00068219,120]
[354402626,1740472250558,-6337.09,0.000683,30]
[354402627,1740472250568,-5975.73970506,0.00068482,6]
[354402628,1740472250578,-390.29039387,0.00068482,6]
[354402629,1740472250587,-500.0,0.00068492,120]
[354402630,1740472250596,-896.11,0.00068493,120]
[354402631,1740472250606,-1175.19,0.00068493,120]
[354402632,1740472250615,-1648.55,0.00068493,120]
[354402633,1740472250624,-376.44,0.00068493,120]
[354402634,1740472250633,-2835.23,0.00068493,3]
[354402635,1740472250643,-10464.78,0.00068493,120]
[354402636,1740472250652,-582.06,0.00068493,120]
[354402637,1740472250662,-568.42,0.00068493,120]
[354402638,1740472250671,-503.47,0.00068493,7]
[354402639,1740472250680,-596.37,0.00068493,120]
[354402640,1740472250689,-500.0,0.00068493,120]
[354402641,1740472250699,-927.79,0.00068493,120]
[354402642,1740472250707,-500.0,0.00068493,120]
[354402643,1740472250716,-500.0,0.00068493,120]
[354402644,1740472250726,-2229.76,0.00068493,120]
[354402645,1740472250735,-500.0,0.00068493,120]
[354402646,1740472250744,-500.0,0.00068493,120]
[354402647,1740472250754,-716.71,0.00068493,120]
[354402648,1740472250764,-20454.37,0.00068493,7]
[354402649,1740472250773,-900.61,0.00068493,120]
[354402650,1740472250782,-1621.79,0.00068493,120]
[354402651,1740472250791,-500.0,0.00068493,120]
[354402652,1740472250802,-500.0,0.00068493,120]
[354402653,1740472250811,-500.0,0.00068493,120]
[354402654,1740472250820,-567.09,0.00068493,120]
[354402655,1740472250829,-690.1,0.00068493,120]
[354402656,1740472250839,-1647.77,0.00068493,120]
[354402657,1740472250848,-337.54,0.00068493,120]
[354402658,1740472250858,-5975.73970506,0.00068757,6]
[354402659,1740472250867,-390.29039387,0.00068757,6]
[354402660,1740472250877,-500.0,0.00068766,120]
[354402661,1740472250886,-896.11,0.00068767,120]
[354402662,1740472250895,-1175.19,0.00068767,120]
[354402663,1740472250904,-1648.55,0.00068767,120]
[354402664,1740472250913,-2835.23,0.00068767,3]
[354402665,1740472250922,-10464.78,0.00068767,120]
[354402666,1740472250932,-582.06,0.00068767,120]
[354402667,1740472250941,-568.42,0.00068767,120]
[354402668,1740472250951,-503.47,0.00068767,7]
[354402669,1740472250960,-500.0,0.00068767,120]
[354402670,1740472250970,-927.79,0.00068767,120]
[354402671,1740472250980,-500.0,0.00068767,120]
[354402672,1740472250990,-500.0,0.00068767,120]
[354402673,1740472251000,-2229.76,0.00068767,120]
[354402674,1740472251011,-500.0,0.00068767,120]
[354402675,1740472251024,-500.0,0.00068767,120]
[354402676,1740472251035,-716.71,0.00068767,120]
[354402677,1740472251047,-20454.37,0.00068767,7]
[354402678,1740472251063,-900.61,0.00068767,120]
[354402679,1740472251074,-1621.79,0.00068767,120]
[354402680,1740472251085,-500.0,0.00068767,120]
[354402681,1740472251096,-500.0,0.00068767,120]
[354402682,1740472251107,-500.0,0.00068767,120]
[354402683,1740472251119,-567.09,0.00068767,120]
[354402684,1740472251131,-1647.77,0.00068767,120]
[354402685,1740472251142,-690.1,0.00068767,120]
[354402686,1740472251154,-150.0,0.000688,4]
[354402687,1740472251166,-5975.73970506,0.00069031,6]
[354402688,1740472251177,-390.29039387,0.00069031,6]
[354402689,1740472251188,-500.0,0.0006904,120]
[354402690,1740472251199,-896.11,0.00069041,120]
[354402691,1740472251211,-1175.19,0.00069041,120]
[354402692,1740472251226,-1648.55,0.00069041,120]
[354402693,1740472251238,-2835.23,0.00069041,3]
[354402694,1740472251248,-10464.78,0.00069041,120]
[354402695,1740472251260,-582.06,0.00069041,120]
[354402696,1740472251273,-568.42,0.00069041,120]
[354402697,1740472251284,-503.47,0.00069041,7]
[354402698,1740472251295,-222.39,0.00069041,120]
[354402699,1740472251314,-927.79,0.00069041,120]
[354402700,1740472251325,-500.0,0.00069041,120]
[354402701,1740472251337,-500.0,0.00069041,120]
[354402702,1740472251349,-2229.76,0.00069041,120]
[354402703,1740472251360,-500.0,0.00069041,120]
[354402704,1740472251371,-500.0,0.00069041,120]
[354402705,1740472251382,-716.71,0.00069041,120]
[354402706,1740472251393,-20454.37,0.00069041,7]
[354402707,1740472251404,-900.61,0.00069041,120]
[354402708,1740472251415,-1621.79,0.00069041,120]
[354402709,1740472251428,-500.0,0.00069041,120]
[354402710,1740472251439,-500.0,0.00069041,120]
[354402711,1740472251451,-500.0,0.00069041,120]
[354402712,1740472251464,-567.09,0.00069041,120]
[354402713,1740472251475,-1647.77,0.00069041,120]
[354402714,1740472251486,-690.1,0.00069041,120]
[354402715,1740472251497,-2404.22,0.000691,30]
[354402716,1740472251508,-500.0,0.00069314,120]
[354402717,1740472251519,-896.11,0.00069315,120]
[354402718,1740472251531,-1175.19,0.00069315,120]
[354402719,1740472251542,-1648.55,0.00069315,120]
[354402720,1740472251558,-2835.23,0.00069315,3]
[354402721,1740472251571,-10464.78,0.00069315,120]
[354402722,1740472251583,-582.06,0.00069315,120]
[354402723,1740472251594,-568.42,0.00069315,120]
[354402724,1740472251605,-503.47,0.00069315,7]
[354402725,1740472251616,-927.79,0.00069315,120]
[354402726,1740472251626,-500.0,0.00069315,120]
[354402727,1740472251637,-500.0,0.00069315,120]
[354402728,1740472251650,-2229.76,0.00069315,120]
[354402729,1740472251660,-455.86,0.00069315,120]
[354402730,1740472251671,-500.0,0.00069315,120]
[354402731,1740472251681,-716.71,0.00069315,120]
[354402732,1740472251692,-20454.37,0.00069315,7]
[354402733,1740472251702,-900.61,0.00069315,120]
[354402734,1740472251712,-1621.79,0.00069315,120]
[354402735,1740472251721,-500.0,0.00069315,120]
[354402736,1740472251731,-500.0,0.00069315,120]
[354402737,1740472251741,-500.0,0.00069315,120]
[354402738,1740472251752,-567.09,0.00069315,120]
[354402739,1740472251762,-1647.77,0.00069315,120]
[354402740,1740472251772,-690.1,0.00069315,120]
[354402741,1740472251781,-5975.73970506,0.00069578,6]
[354402742,1740472251791,-390.29039387,0.00069578,6]
[354402743,1740472251802,-500.0,0.00069588,120]
[354402744,1740472251811,-896.11,0.00069589,120]
[354402745,1740472251821,-1175.19,0.00069589,120]
[354402746,1740472251831,-1648.55,0.00069589,120]
[354402747,1740472251841,-2835.23,0.00069589,3]
[354402748,1740472251850,-10464.78,0.00069589,120]
[354402749,1740472251860,-582.06,0.00069589,120]
[354402750,1740472251870,-568.42,0.00069589,120]
[354402751,1740472251880,-503.47,0.00069589,7]
[354402752,1740472251890,-927.79,0.00069589,120]
[354402753,1740472251900,-500.0,0.00069589,120]
[354402754,1740472251909,-500.0,0.00069589,120]
[354402755,1740472251919,-2229.76,0.00069589,120]
[354402756,1740472251929,-500.0,0.00069589,120]
[354402757,1740472251939,-716.71,0.00069589,120]
[354402758,1740472251949,-20454.37,0.00069589,7]
[354402759,1740472251959,-900.61,0.00069589,120]
[354402760,1740472251970,-1621.79,0.00069589,120]
[354402761,1740472251979,-448.03498563,0.00069589,120]
[354402762,1740472251989,-500.0,0.00069589,120]
[354402763,1740472252000,-500.0,0.00069589,120]
[354402764,1740472252010,-567.09,0.00069589,120]
[354402765,1740472252019,-1647.77,0.00069589,120]
[354402766,1740472252029,-690.1,0.00069589,120]
[354402767,1740472252038,-5975.73970506,0.00069853,6]
[354402768,1740472252049,-390.29039387,0.00069853,6]
[354402769,1740472252058,-311.84,0.00069862,120]
[354402770,1740472252067,-896.11,0.00069863,120]
[354402771,1740472252077,-1175.19,0.00069863,120]
[354402772,1740472252087,-1648.55,0.00069863,120]
[354402773,1740472252097,-2835.23,0.00069863,3]
[354402774,1740472252107,-10464.78,0.00069863,120]
[354402775,1740472252118,-582.06,0.00069863,120]
[354402776,1740472252127,-568.42,0.00069863,120]
[354402777,1740472252138,-503.47,0.00069863,7]
[354402778,1740472252148,-927.79,0.00069863,120]
[354402779,1740472252158,-500.0,0.00069863,120]
[354402780,1740472252168,-500.0,0.00069863,120]
[354402781,1740472252178,-2229.76,0.00069863,120]
[354402782,1740472252187,-500.0,0.00069863,120]
[354402783,1740472252197,-716.71,0.00069863,120]
[354402784,1740472252207,-20454.37,0.00069863,7]
[354402785,1740472252216,-900.61,0.00069863,120]
[354402786,1740472252230,-1621.79,0.00069863,120]
[354402787,1740472252240,-500.0,0.00069863,120]
[354402788,1740472252253,-500.0,0.00069863,120]
[354402789,1740472252263,-567.09,0.00069863,120]
[354402790,1740472252276,-1647.77,0.00069863,120]
[354402791,1740472252286,-690.1,0.00069863,120]
[354402792,1740472252296,-5975.73970506,0.00070126,6]
[354402793,1740472252309,-390.29039387,0.00070126,6]
[354402794,1740472252318,-896.11,0.00070136,120]
[354402795,1740472252328,-1175.19,0.00070136,120]
[354402796,1740472252337,-1648.55,0.00070136,120]
[354402797,1740472252347,-2835.23,0.00070136,3]
[354402798,1740472252357,-10464.78,0.00070136,120]
[354402799,1740472252366,-582.06,0.00070136,120]
[354402800,1740472252377,-568.42,0.00070136,120]
[354402801,1740472252386,-503.47,0.00070136,7]
[354402802,1740472252395,-927.79,0.00070136,120]
[354402803,1740472252406,-500.0,0.00070136,120]
[354402804,1740472252417,-518.88,0.00070136,120]
[354402805,1740472252428,-2229.76,0.00070136,120]
[354402806,1740472252437,-500.0,0.00070136,120]
[354402807,1740472252448,-716.71,0.00070136,120]
[354402808,1740472252458,-20454.37,0.00070136,7]
[354402809,1740472252468,-900.61,0.00070136,120]
[354402810,1740472252477,-1621.79,0.00070136,120]
[354402811,1740472252486,-212.09010953,0.00070136,120]
[354402812,1740472252496,-500.0,0.00070136,120]
[354402813,1740472252506,-567.09,0.00070136,120]
[354402814,1740472252515,-1647.77,0.00070136,120]
[354402815,1740472252524,-690.1,0.00070136,120]
[354402816,1740472252534,-896.11,0.0007041,120]
[354402817,1740472252612,-1175.19,0.0007041,120]
[354402818,1740472252630,-1648.55,0.0007041,120]
[354402819,1740472252640,-2835.23,0.0007041,3]
[354402820,1740472252649,-10464.78,0.0007041,120]
[354402821,1740472252658,-582.06,0.0007041,120]
[354402822,1740472252667,-568.42,0.0007041,120]
[354402823,1740472252676,-503.47,0.0007041,7]
[354402824,1740472252686,-927.79,0.0007041,120]
[354402825,1740472252695,-500.0,0.0007041,120]
[354402826,1740472252705,-2229.76,0.0007041,120]
[354402827,1740472252714,-500.0,0.0007041,120]
[354402828,1740472252724,-716.71,0.0007041,120]
[354402829,1740472252733,-20454.37,0.0007041,7]
[354402830,1740472252742,-900.61,0.0007041,120]
[354402831,1740472252751,-1621.79,0.0007041,120]
[354402832,1740472252761,-500.0,0.0007041,120]
[354402833,1740472252770,-567.09,0.0007041,120]
[354402834,1740472252779,-1647.77,0.0007041,120]
[354402835,1740472252788,-690.1,0.0007041,120]
[354402836,1740472252797,-896.11,0.00070684,120]
[354402837,1740472252808,-1175.19,0.00070684,120]
[354402838,1740472252818,-1648.55,0.00070684,120]
[354402839,1740472252828,-2835.23,0.00070684,3]
[354402840,1740472252837,-10464.78,0.00070684,120]
[354402841,1740472252846,-582.06,0.00070684,120]
[354402842,1740472252855,-568.42,0.00070684,120]
[354402843,1740472252864,-503.47,0.00070684,7]
[354402844,1740472252873,-927.79,0.00070684,120]
[354402845,1740472252883,-500.0,0.00070684,120]
[354402846,1740472252892,-2229.76,0.00070684,120]
[354402847,1740472252900,-478.51,0.00070684,120]
[354402848,1740472252910,-716.71,0.00070684,120]
[354402849,1740472252919,-20454.37,0.00070684,7]
[354402850,1740472252928,-900.61,0.00070684,120]
[354402851,1740472252937,-1621.79,0.00070684,120]
[354402852,1740472252946,-500.0,0.00070684,120]
[354402853,1740472252955,-567.09,0.00070684,120]
[354402854,1740472252964,-1647.77,0.00070684,120]
[354402855,1740472252973,-690.1,0.00070684,120]
[354402856,1740472252982,-896.11,0.00070958,120]
[354402857,1740472252992,-1175.19,0.00070958,120]
[354402858,1740472253001,-1648.55,0.00070958,120]
[354402859,1740472253010,-2835.23,0.00070958,3]
[354402860,1740472253019,-10464.78,0.00070958,120]
[354402861,1740472253028,-582.06,0.00070958,120]
[354402862,1740472253037,-568.42,0.00070958,120]
[354402863,1740472253046,-503.47,0.00070958,7]
[354402864,1740472253057,-927.79,0.00070958,120]
[354402865,1740472253066,-500.0,0.00070958,120]
[354402866,1740472253076,-2229.76,0.00070958,120]
[354402867,1740472253085,-716.71,0.00070958,120]
[354402868,1740472253094,-20454.37,0.00070958,7]
[354402869,1740472253103,-900.61,0.00070958,120]
[354402870,1740472253112,-1621.79,0.00070958,120]
[354402871,1740472253121,-500.0,0.00070958,120]
[354402872,1740472253130,-567.09,0.00070958,120]
[354402873,1740472253139,-1647.77,0.00070958,120]
[354402874,1740472253149,-690.1,0.00070958,120]
[354402875,1740472253158,-165298.95,0.00071,30]
[354402876,1740472253167,-500.0,0.00071231,2]
[354402877,1740472253176,-500.0,0.00071231,120]
[354402878,1740472253185,-500.0,0.00071231,120]
[354402879,1740472253195,-500.0,0.00071231,120]
[354402880,1740472253204,-359.80449449,0.00071231,120]
[354402881,1740472253213,-500.0,0.00071231,120]
[354402882,1740472253224,-505.67,0.00071231,120]
[354402883,1740472253234,-500.0,0.00071231,120]